Cogmind - Beta 14 @@@ ROGUE MODE // 2024.11.20 @ 12:06:19 Player: akira Result: Destroyed by as-77904 with Assembled Rifle Performance ------------- Evolutions (1) 500 Regions Visited (3) 600 Robots Destroyed (29) 145 Value Destroyed (672) 672 Prototype IDs (1) 20 Alien Tech Used (0) 0 Bonus (11) 11 TOTAL SCORE: 1948 Bonus ------- High Alert Combat Kills 11 Cogmind --------- Core Integrity 0/400 Matter 283/300 Energy 100/100 System Corruption 0% Temperature Cool (0) Movement Core (400) Ox7 Location -9/Mines Parts ------- > --- POWER (1) -------- (None) > --- PROPULSION (3) --- (None) > --- UTILITY (3) ------ Large Storage Unit > --- WEAPON (2) ------- Heavy Assault Rifle > --- INVENTORY (15) --- Light Ion Engine Light Ion Engine Improved Ion Engine Improved Ion Engine Reinforced Ion Engine Improved Treads Aluminum Leg Heat Sink Small Storage Unit Small Battery (100) Light Armor Plating Improved EM Shotgun Improved Medium Laser Grenade Launcher Peak State ------------ > --- POWER ------------ Ion Engine > --- PROPULSION ------- Aluminum Leg Aluminum Leg Aluminum Leg > --- UTILITY ---------- Large Storage Unit Weapon Shielding Weapon Shielding > --- WEAPON ----------- Heavy Assault Rifle Heavy Assault Rifle > --- INVENTORY -------- Ion Engine Light Ion Engine Light Ion Engine Improved Ion Engine Improved Treads Aluminum Leg Aluminum Leg Heat Sink Small Storage Unit Light Armor Plating Light Armor Plating Tractor Beam Improved Medium Laser Grenade Launcher [Rating: 12] Favorites ----------- Power Ion Engine Engine Ion Engine Propulsion Aluminum Leg Treads Light Treads Leg Aluminum Leg Utility Weapon Shielding Storage Large Storage Unit Protection Weapon Shielding Weapon Light Assault Rifle Ballistic Gun Light Assault Rifle Build | -11 -10 -9 -9 ------- Run | Yrd Mat Mat Min Slots Evolved 2 | . . 2 . Power . | . . . . Propulsion 1 | . . 1 . Utility 1 | . . 1 . Weapon . | . . . . Parts Attached 23 | 6 2 14 1 Power 2 | 1 . 1 . Engine 2 | 1 . 1 . Core . | . . . . Reactor . | . . . . Propulsion 9 | 2 . 7 . Treads 3 | 2 . 1 . Leg 6 | . . 6 . Wheel . | . . . . Hover . | . . . . Flight . | . . . . Utility 6 | 1 2 3 . Device . | . . . . Storage 3 | 1 1 1 . Processor . | . . . . Hackware . | . . . . Protection 3 | . 1 2 . Artifact . | . . . . Weapon 6 | 2 . 3 1 Energy Gun . | . . . . Energy Cannon . | . . . . Ballistic Gun 6 | 2 . 3 1 Ballistic Cannon . | . . . . Launcher . | . . . . Special Weapon . | . . . . Impact Weapon . | . . . . Slashing Weapon . | . . . . Piercing Weapon . | . . . . Special Melee Weapon . | . . . . Unidentified Prototypes . | . . . . Parts Lost 14 | . . 7 7 Power 2 | . . 1 1 Propulsion 6 | . . 3 3 Utility 4 | . . 2 2 Weapon 2 | . . 1 1 Highest Loss Streak 7 | . . 4 7 To Critical Strikes . | . . . . Average Slot Usage (%) 91 | . 97 91 84 Engine 11 | . 14 10 10 Treads 13 | . 28 9 . Leg 17 | . . 22 31 Storage 14 | . 14 12 22 Protection 15 | . 11 18 10 Ballistic Gun 18 | . 28 16 11 Peak Build Rating 12 | 6 8 12 11 Average Rating 9 | 3 6 10 10 On Entrance 6 | . 6 8 11 Naked Turns . | . . . . Heaviest Build 33 | 13 33 32 32 Greatest Support 63 | 40 40 63 30 Greatest Overweight (x) 1 | . . 1 1 Average Overweight (x) . | . . . . Largest Inventory Capacity 15 | 8 15 15 15 Average Capacity 14 | 6 13 15 15 Most Carried 15 | 5 10 15 15 Average Carried 11 | 2 6 14 14 Final Capacity 15 | 8 15 15 15 Final Carried 15 | 2 10 15 14 Class Distribution -------------------- 100% | Mutant Dominant Class ---------------- Mutant | -10/Materials Mutant | -9/Materials Mutant | -9/Mines Resources | -11 -10 -9 -9 ----------- Run | Yrd Mat Mat Min Matter Collected 794 | 245 111 438 . Remotely . | . . . . Salvage Created 959 | . 171 763 25 Parts 64 | . 14 50 . Haulers Intercepted . | . . . . Recyclers Shooed . | . . . . Parts Field Recycled . | . . . . Retrieved Matter . | . . . . Parts Self-Destructed . | . . . . Prevented . | . . . . Kills | -11 -10 -9 -9 ------- Run | Yrd Mat Mat Min Combat Hostiles Destroyed 27 | . 6 19 2 Guns 26 | . 5 19 2 AOE 1 | . 1 . . Classes Destroyed 8 | . 3 4 1 Worker 1 | . . 1 . Recycler 1 | . 1 . . Watcher 2 | . 1 1 . Swarmer 12 | . 6 6 . Grunt 7 | . . 7 . Brawler 2 | . . 2 . Sentry 4 | . . 4 . Assembled 2 | . . . 2 Best Kill Streak 9 | . 5 9 2 Combat Bots Only 8 | . 3 8 2 Max Kills in Single Turn 3 | . 3 1 1 Gunslinging 1 | . 1 . . Exploded 1 | . 1 . . Melee . | . . . . Uniques/NPCs Destroyed . | . . . . Combat | -11 -10 -9 -9 -------- Run | Yrd Mat Mat Min Hostile Shots Fired 230 | . 45 147 38 Missed 69 | . 16 46 7 Damage Taken 2020 | . 294 1208 518 Core 433 | . 28 248 157 Absorbed by Shields . | . . . . Redirected to Shielding 103 | . 24 79 . Core Remaining (%) 94 | 100 88 . . Volleys Fired 136 | . 20 103 13 Largest 2 | . 2 2 1 Hottest 43 | . 40 43 23 Shots Fired 179 | . 40 126 13 Gun 179 | . 40 126 13 Cannon . | . . . . Launcher . | . . . . Special . | . . . . Kinetic 179 | . 40 126 13 Thermal . | . . . . Explosive . | . . . . Electromagnetic . | . . . . Robot Hit Streak 8 | . 4 8 6 Robot Miss Streak 7 | . 7 3 4 Penetration Max . | . . . . Secondary Targets 3 | . 2 1 . Max Gunslinging Chain 1 | . 1 1 . Shots Hit Robots 114 | . 21 86 7 Core Hits 53 | . 11 36 6 Critical Kills . | . . . . Critical Parts Destroyed 3 | . . 3 . Critical Strikes 3 | . . 3 . Destroy 3 | . . 3 . Melee Attacks . | . . . . Impact . | . . . . Slashing . | . . . . Piercing . | . . . . Sneak Attacks . | . . . . Combat Hostiles . | . . . . Follow-up Attacks . | . . . . Damage Inflicted 1899 | . 549 1223 127 Guns 1587 | . 237 1223 127 Cannons . | . . . . Explosions 312 | . 312 . . Melee . | . . . . Ramming . | . . . . Kinetic 1587 | . 237 1223 127 Thermal . | . . . . Explosive 312 | . 312 . . Electromagnetic . | . . . . Impact . | . . . . Slashing . | . . . . Piercing . | . . . . Highest Corruption . | . . . . Average Corruption . | . . . . Corruption Purged . | . . . . Corruption Blocked . | . . . . Overload Shots . | . . . . Overflow Damage 23 | . 23 . . Projectiles . | . . . . Explosions 23 | . 23 . . Melee . | . . . . Knockbacks . | . . . . Impact . | . . . . Kinetic . | . . . . Secondary . | . . . . Self-Inflicted Damage 68 | . 68 . . Shots 1 | . 1 . . Rammed . | . . . . Targets Rammed . | . . . . Kicked . | . . . . Crushed . | . . . . Highest Temperature 18 | . . 18 . Average Temperature 7 | . . 7 . Received Heat Transfer 456 | . . 456 . Siege Activations . | . . . . Robots Corrupted . | . . . . Combat Hostiles . | . . . . Parts Fried . | . . . . Impact Corruptions . | . . . . Robots Melted . | . . . . Combat Hostiles . | . . . . Parts Melted . | . . . . Heat Transferred . | . . . . Parts Sabotaged . | . . . . Parts Stolen . | . . . . Parts Stripped . | . . . . Power Chain Reactions . | . . . . Alert | -11 -10 -9 -9 ------- Run | Yrd Mat Mat Min Peak Influence 420 | . 193 420 117 Initial 117 | . . 81 117 Average 148 | . 89 196 113 Maximum Alert Level 2 | . . 2 . Low Security (%) 78 | 100 100 61 100 Level 1 18 | . . 34 . Level 2 2 | . . 4 . Level 3 . | . . . . Level 4 . | . . . . Level 5 . | . . . . High Security . | . . . . Max Security . | . . . . Squads Dispatched 2 | . 1 1 . Investigation . | . . . . Extermination . | . . . . Reinforcement 2 | . 1 1 . Assault . | . . . . Garrison . | . . . . Intercept . | . . . . Searches Triggered . | . . . . Construction Impeded . | . . . . Haulers Reinforced . | . . . . Active Scanning Responses . | . . . . Cargo Convoy Interrupts . | . . . . Stealth | -11 -10 -9 -9 --------- Run | Yrd Mat Mat Min Distress Signals 6 | . 1 5 . Communications Jammed . | . . . . Distress Signals . | . . . . Times Spotted 47 | . 8 32 7 Peak Tracking Total 7 | . 3 7 7 Tactical Retreats 4 | . . 3 1 Traps | -11 -10 -9 -9 ------- Run | Yrd Mat Mat Min Traps Triggered . | . . . . Indirectly . | . . . . Trap Hack Attempts . | . . . . Triggered . | . . . . Disarmed . | . . . . Reprogrammed . | . . . . Reused . | . . . . Traps Extracted . | . . . . Installed . | . . . . Triggered . | . . . . Machines | -11 -10 -9 -9 ---------- Run | Yrd Mat Mat Min Machines Disabled 1 | . 1 . . Max in Single Turn 1 | . 1 . . Machines Repaired . | . . . . Machines Dismantled . | . . . . Machines Sabotaged . | . . . . Overloaded Fab Kills . | . . . . Hacking | -11 -10 -9 -9 --------- Run | Yrd Mat Mat Min Machines Accessed 4 | . . 4 . Terminals 3 | . . 3 . Fabricators . | . . . . Repair Stations . | . . . . Recycling Units . | . . . . Scanalyzers 1 | . . 1 . Garrison Access . | . . . . Total Hacks 5 | . . 5 . Successful 3 | . . 3 . Failed 2 | . . 2 . Catastrophic . | . . . . Database Lockouts . | . . . . Manual . | . . . . Terminals 3 | . . 3 . Fabricators . | . . . . Repair Stations . | . . . . Recycling Units . | . . . . Scanalyzers 2 | . . 2 . Garrison Access . | . . . . Terminal Hacks 1 | . . 1 . Alert Level 1 | . . 1 . Fabricator Hacks . | . . . . Repair Station Hacks . | . . . . Recycling Unit Hacks . | . . . . Scanalyzer 2 | . . 2 . Insert Component 1 | . . 1 . Analyze 1 | . . 1 . Garrison Access Hacks . | . . . . Unauthorized Hacks . | . . . . Terminals . | . . . . Fabricators . | . . . . Repair Stations . | . . . . Recycling Units . | . . . . Scanalyzers . | . . . . Garrison Access . | . . . . Data Cores Recovered . | . . . . Used . | . . . . Hacking Detections . | . . . . Full Trace Events . | . . . . Feedback Events . | . . . . Feedback Blocked . | . . . . Robot Schematics Acquired . | . . . . Robots Built . | . . . . Authchips . | . . . . Time . | . . . . Total Robot Build Rating . | . . . . Part Schematics Acquired 1 | . . 1 . Parts Built . | . . . . Authchips . | . . . . Time . | . . . . Total Part Build Rating . | . . . . Parts Repaired . | . . . . Time . | . . . . Parts Recycled . | . . . . Recycled Matter . | . . . . Retrieved Matter . | . . . . Retrieved Components . | . . . . Parts Scanalyzed 1 | . . 1 . Part Schematics Acquired 1 | . . 1 . Parts Damaged . | . . . . Bothacking | -11 -10 -9 -9 ------------ Run | Yrd Mat Mat Min Used RIF Installer . | . . . . Robots Hacked . | . . . . Non-combat . | . . . . Combat . | . . . . Robot Hacks Applied . | . . . . Relay Couplers Released . | . . . . Fabnet Peak Effective % . | . . . . Robots Rewired . | . . . . Allies Hacked . | . . . . Hacks Repelled . | . . . . Allies | -11 -10 -9 -9 -------- Run | Yrd Mat Mat Min Total Allies . | . . . . Largest Group . | . . . . Highest-Rated Group . | . . . . Highest-Rated Ally . | . . . . Total Orders . | . . . . Ally Attacks . | . . . . Total Damage . | . . . . Kills . | . . . . Allies Corrupted . | . . . . Allies Melted . | . . . . Intel | -11 -10 -9 -9 ------- Run | Yrd Mat Mat Min Robot Analysis Total . | . . . . Derelict Logs Recovered 1 | . . . 1 Drone Launches . | . . . . Drone Recoveries . | . . . . Exploration | -11 -10 -9 -9 ------------- Run | Yrd Mat Mat Min Turns Passed 1545 | 64 387 844 250 Spaces Moved 687 | 36 190 343 118 Core 6 | 6 . . . Treads 333 | 30 190 113 . Legs 348 | . . 230 118 Wheels . | . . . . Hover . | . . . . Flight . | . . . . Fastest Speed 50 | 50 160 120 120 Average Speed 157 | 141 160 147 189 Slowest Speed 190 | 160 160 190 190 Overloaded Moves . | . . . . Propulsion Burnouts . | . . . . Robots Hopped . | . . . . Cave-ins Triggered . | . . . . Exploration Rate (%) 28 | 3 39 37 35 Regions Visited 3 Branch Regions 1 Pre-discovered Areas . | . . . . Known Exits Taken . | . . . . Unknown Exits Taken 3 | 1 1 1 . Scrap Searched . | . . . . Spaces Dug . | . . . . Terrain Destroyed 13 | . 13 . . Melee . | . . . . Projectile . | . . . . AOE 13 | . 13 . . Terrain Rammed . | . . . . Walls Destroyed . | . . . . Machines Disabled . | . . . . Actions | -11 -10 -9 -9 --------- Run | Yrd Mat Mat Min Total 984 | 49 238 565 132 Wait 95 | . 17 78 . Move 684 | 35 189 342 118 Hop . | . . . . Pick Up 37 | 8 9 20 . Fast Attach . | . . . . Attach 20 | 6 2 11 1 Detach 2 | . 1 1 . Swap 3 | . . 3 . Drop 7 | . . 7 . Fire 136 | . 20 103 13 Melee . | . . . . Ram . | . . . . Kick . | . . . . Crush . | . . . . Escape Stasis . | . . . . Rewire . | . . . . Trap . | . . . . Miscellaneous . | . . . . Route ------- -11/Scrapyard -10/Materials -9/Materials -9/Mines (discovered 1 exit: Mat) History --------- Turn | Location | Event 5 | -11/Scrapyard | Discovered new exit (range 15) 65 | -11/Scrapyard | Entered Materials 307 | -10/Materials | Build established: Mutant 391 | -10/Materials | Discovered new exit (range 16) 452 | -10/Materials | Entered another Materials area 452 | -9/Materials | Evolved 2 slots: Propulsion x1, Utility x1 954 | -9/Materials | Discovered new exit (range 16) 1001 | -9/Materials | Destroyed 8 combat bots 1053 | -9/Materials | Core integrity fell below 50% 1079 | -9/Materials | Lost 4 parts (1p1n1u1w) 1184 | -9/Materials | Lost 3 parts (2n1u) 1296 | -9/Materials | Entered Mines 1462 | -9/Mines | Identified exit to Materials 1501 | -9/Mines | Assembled infested the area 1506 | -9/Mines | Assisted by a Guerilla fighting off Assembled 1540 | -9/Mines | Core integrity fell below 20% 1546 | -9/Mines | Destroyed by as-77904 with Assembled Rifle Last Messages --------------- 01510_ K-01 Serf collects debris. 01515_ KY-W7T(h): "I'll hold them off! Go on ahead or try to find another way!" 01517_ K-01 Serf collects debris. 01519_ as-56168 suffers critical hit (Destroy). 01519_ as-56168 knocked back. 01520_ KY-W7T(h) destroyed. 01522_ K-01 Serf destroyed. 01523_ Lgt. Armor Plating destroyed. 01526_ Ion Engine destroyed. 01527_ K-01 Serf collects debris. 01530_ as-08066 destroyed. 01534_ Aluminum Leg destroyed. 01534_ as-81566 destroyed. 01535_ R-06 Scavenger collects Wheel. 01536_ Aluminum Leg destroyed. 01538_ Hvy. Assault Rifle destroyed. 01538_ as-55412 destroyed. 01540_ R-06 Scavenger collects Corrupted Wheel. 01545_ Sml. Battery destroyed. Map ----- +----------------------------------------------------+ | ???????????????????????????????????? | | ???????????????????????????????????? | | ???????????????????????????????????? | | ???????????????????????????????????? | | ???????????????????????????????????? | | ???????????????????????????????????? | | ???????????????????????????????????? | | ???????????????????????????????????? | | ????????????????? ?????????????????? | | ###?????????????? ?????????????????? | | ##????????????# ??####???????????? | | ###?#####????# #? ????????????? | | ### #????# ## ????????????? | | ##???# #????????????? | | ##??# ## #????????????? | | #??# # #???#####????? | | #??# ## #??## ##???? | | # ##### #?## % #??# ##??? | | # ##???## ##?# *% ##?# #??? | | # #?????#####??# ##?# ##?? | | # #???????????## #??# #?? | | # ??????????## r #???# #?? | | ###??????????# a #???# #?? | | ?????????????# a=##?## #?? | | ??####??# #### a%%### #?? | | ### ##?# ## %@ ##?? | | #?###### #### #??? | | """ ##?????# #??## #??? | | # """ ####??# #???### #??? | | """ ##?# #?????## ##??? | | ### #??????# ##???? | | ## #?????# ###????? | | # ##### ######?????# ##??????? | | ## ##???###??????????# ##???????? | | ?####?????????????????#####????????? | | ???????????????????????????????????? | | ???????????????????????????????????? | | ???????????????????????????????????? | | ???????????????????????????????????? | | ???????????????????????????????????? | | ???????????????????????????????????? | | ???????????????????????????????????? | | | | | | | | | | | | | | | | | +----------------------------------------------------+ Best States ------------- Heat Dissipation 28 Energy Generation 10 Energy Capacity 350 Matter Stores 300 Matter Capacity 300 Sight Range 16 Terrain Scan Density 10 Armor Coverage 150 Weapon Shielding 33 Evasion (%) 55 Recoil Reduction 3 Item Schematics ----------------- Imp. Medium Laser | -9/Materials | Scanalyzed Robot Schematics ------------------ None Fabricated ------------ Nothing Alien Tech Used ----------------- None Achievements -------------- Safety First Challenges ------------ None Game ------ Seed WeaponsAlloyClaws Manual? 0 Play Time 00:30:47 Cumulative 5.0 hours Start 2024.11.20 @ 11:35:29 End 2024.11.20 @ 12:06:19 Sessions 1 Manual Loads 0 Difficulty Rogue Special Mode None Game No. 8 Rogue 8 Adventurer 0 Explorer 0 Win Type - Total 0 Types 0/0/0/0/0/0/0/0/0 Lore% 0 Gallery% 10 Achievement% 10 Wizard Run 0 Options --------- Layout 1 ASCII 1 Keyboard 0 Movement Mouse Keybinds 0 Fullscreen 1 Font 16/SmallcapsGlow Map View 27x19 Zoom Use 99% Tactical HUD 1 Map Filters NONE Filters NONE Steam 1 RUN: 6eb01b06-b41c-4b20-9cf6-9d7e6d01b7cb